bitfinex-derivatives/quotes_ETHF0:USTF0_20251107
["timestamp","ask_amount","ask_price","bid_price","bid_amount"]
[1762546619472,0.15083717,3445.8,3445.1,0.47052]
[1762546619667,0.15083717,3445.8,3444.7,0.3819]
[1762546619867,0.47049,3445.4,3444.7,0.3819]
[1762546620176,0.75830665,3445.7,3445.3,0.4705]
[1762546620369,0.75830665,3445.6,3445.3,0.4705]
[1762546620579,0.0964791,3445.5,3445.3,0.47049]
[1762546620773,0.00233717,3445.8,3444.7,0.39001325]
[1762546621378,0.76075539,3445.8,3444.7,0.39001325]
[1762546621573,0.0964791,3445.7,3445.6,0.2283]
[1762546621873,0.47031,3446.7,3446.1,0.2283]
[1762546622176,0.2471,3446.1,3446.0,0.517]
[1762546622777,0.00227769,3446.1,3446.0,0.517]
[1762546623369,0.47266769,3446.1,3446.0,0.517]
[1762546623675,0.34592457,3446.1,3446.0,0.517]
[1762546623973,0.00227769,3446.1,3446.0,1.21571]
[1762546624175,0.00227769,3446.1,3445.2,0.1367]
[1762546624176,0.47041,3446.0,3445.9,0.47041]
[1762546624368,0.00227769,3446.1,3446.0,0.69871]
[1762546624770,0.00227769,3446.1,3445.8,0.1367]
[1762546624771,0.00435438,3446.4,3446.3,0.69867]
[1762546625274,0.47026,3447.1,3447.0,0.69856]
[1762546625476,0.47034,3446.5,3445.8,0.1367]
[1762546625672,1.04096011,3447.5,3446.8,0.47028]
[1762546625977,0.09656942,3447.4,3446.7,0.47031]
[1762546626280,0.2471,3446.8,3446.7,0.00435438]
[1762546626576,0.1485,3446.4,3445.2,0.1367]
[1762546626874,0.47046,3445.6,3445.4,0.47049]
[1762546627069,0.47043,3445.9,3445.6,0.47045]
[1762546627272,0.47047,3445.6,3445.5,0.69877]
[1762546627475,0.47049,3445.4,3445.3,0.4705]
[1762546627981,0.47044,3445.8,3445.5,0.47047]
[1762546628181,0.47044,3445.8,3445.2,0.00435438]
[1762546628182,0.47049,3445.5,3445.3,0.4705]
[1762546628478,0.09656622,3445.8,3445.7,0.47045]
[1762546628677,0.47476438,3446.0,3445.8,0.47043]
[1762546629381,0.00435438,3446.0,3445.9,0.47042]
[1762546629772,0.00435438,3446.0,3445.9,0.69872]
[1762546630279,1.56289204,3447.3,3446.7,0.47031]
[1762546630280,0.4703,3446.8,3446.7,0.47031]
[1762546630483,0.75690821,3447.2,3446.1,0.1364]
[1762546630783,0.75690821,3447.1,3447.0,0.47027]
[1762546630984,0.0028516,3447.5,3447.1,0.47024]
[1762546630985,0.47024,3447.2,3447.1,0.47024]
[1762546631183,0.75684043,3447.4,3447.0,0.47027]
[1762546631384,0.0028516,3447.5,3447.1,0.47025]
[1762546631385,0.47024,3447.2,3447.1,0.47025]
[1762546631583,0.47028,3446.9,3446.8,0.00435438]
[1762546631785,0.47023,3447.3,3446.9,0.47028]
[1762546632083,0.00720598,3447.5,3446.8,0.00435438]
[1762546632084,0.75679094,3447.4,3446.8,0.00435438]
[1762546632274,0.00720598,3447.5,3446.8,0.00435438]
[1762546632275,0.71738,3446.9,3446.8,0.00435438]
[1762546632674,1.37760996,3446.9,3446.8,0.00435438]
[1762546632875,1.474163,3446.9,3446.8,0.00435438]
[1762546634379,1.47420337,3446.9,3446.8,0.00435438]
[1762546635272,1.00392337,3446.9,3446.8,0.47465438]
[1762546635477,1.47421337,3446.9,3446.8,0.00435438]
[1762546636381,0.75682337,3446.9,3446.8,0.47465438]
[1762546636580,0.09659341,3446.9,3446.8,0.47465438]
[1762546636780,0.09659341,3447.2,3446.8,0.47465438]
[1762546637083,0.75682337,3447.2,3446.8,0.47465438]
[1762546637280,0.47029,3446.9,3446.8,0.00435438]
[1762546637592,0.71739,3446.9,3446.8,0.00435438]
[1762546637775,1.47421337,3446.9,3446.8,0.00435438]
[1762546637979,1.47421337,3446.9,3446.8,0.47465438]
[1762546638182,0.75682337,3446.9,3446.8,0.47465438]
[1762546638387,1.22711337,3446.9,3446.8,0.00435438]
[1762546638685,1.47421337,3446.9,3446.8,0.00435438]
[1762546639380,1.47421337,3446.9,3444.6,0.1283]
[1762546639381,0.1485,3446.4,3445.3,0.5251]
[1762546639576,0.2471,3445.4,3445.3,0.5251]
[1762546639776,0.1485,3445.8,3444.7,0.38565887]
[1762546639976,0.66022996,3445.7,3444.7,0.38565887]
[1762546640272,0.47058,3444.9,3444.8,0.47057]
[1762546640471,0.00343342,3444.9,3444.8,0.47057]
[1762546640876,0.1485,3444.6,3442.9,1.53661558]
[1762546641079,0.1485,3444.0,3442.2,0.1367]
[1762546641282,0.47083,3443.0,3442.7,0.47086]
[1762546641485,0.47084,3442.9,3442.7,0.47085]
[1762546641879,1.80113233,3443.7,3442.7,0.0037461]
[1762546642188,0.71795,3442.8,3442.7,0.0037461]
[1762546642375,0.71798,3442.6,3442.5,0.00435438]
[1762546642575,0.86648,3442.6,3442.5,0.00435438]
[1762546642781,1.62523938,3442.6,3442.5,0.00435438]
[1762546642981,0.86648,3442.6,3442.5,0.00435438]
[1762546643380,0.00435438,3443.1,3442.5,0.00435438]
[1762546643692,0.00435438,3443.1,3442.9,0.47083]
[1762546643890,0.75706183,3444.5,3442.9,8.0]
[1762546644077,0.75706183,3444.4,3443.4,0.47076]
[1762546644280,0.47068,3444.1,3443.5,0.47074]
[1762546644484,0.1485,3444.6,3442.6,0.5195]
[1762546644884,0.00435438,3443.9,3443.6,0.47073]
[1762546645085,0.00435438,3443.9,3443.2,0.1367]
[1762546645391,0.00435438,3443.9,3442.6,0.4511]
[1762546645586,1.04099602,3443.8,3442.6,0.4511]
[1762546645788,0.47082,3443.1,3442.7,0.47086]
[1762546646097,0.75650616,3443.6,3442.6,0.92197]
[1762546646290,0.00435438,3443.9,3442.6,0.4511]
[1762546646490,0.00435438,3443.9,3443.7,0.47072]
[1762546646889,0.00435438,3443.9,3442.6,0.4511]
[1762546647184,0.00435438,3443.9,3443.7,0.47072]
[1762546648391,0.47072,3443.8,3443.2,0.1367]
[1762546648593,0.47072,3443.8,3443.6,0.47073]
[1762546649101,0.47085,3442.8,3442.6,0.4511]
[1762546649286,0.47096,3442.0,3441.9,0.5128]
[1762546649487,0.7547937,3443.0,3439.6,2.42861558]
[1762546649682,0.47097,3442.0,3439.6,0.892]
[1762546649887,0.47105,3441.4,3439.5,1.53661558]
[1762546650094,0.47106,3441.3,3439.8,0.766]
[1762546650286,0.00435438,3441.0,3440.8,0.0771]
[1762546650482,0.47094,3442.2,3440.8,0.0771]
[1762546650690,0.47099,3441.8,3441.6,0.47101]
[1762546650884,0.1405,3442.4,3440.3,0.00435438]
[1762546651391,0.14421559,3442.4,3440.3,0.00435438]
[1762546651692,0.4711,3441.0,3440.3,0.00435438]
[1762546651892,0.47108,3441.2,3440.9,0.4711]
[1762546652090,0.1405,3441.6,3440.9,0.47111]
[1762546652302,0.47108,3441.2,3441.0,0.381]
[1762546652989,0.1405,3441.6,3441.0,0.85209]
[1762546653187,0.47103,3441.5,3441.0,0.381]
[1762546653392,0.00435438,3441.7,3441.3,0.47105]
[1762546653594,0.00435438,3441.7,3441.5,0.47103]
[1762546653899,0.47535438,3441.7,3441.4,0.47104]
[1762546654084,0.00435438,3441.7,3441.5,0.47102]
[1762546655396,0.00371559,3442.4,3442.3,0.47092]
[1762546655596,0.00371559,3442.4,3441.6,0.0727]
[1762546655895,0.00371559,3442.4,3442.3,0.47092]
[1762546656586,0.23781545,3444.0,3442.4,0.1496]
[1762546656899,0.4708,3443.2,3442.7,0.47086]
[1762546657088,0.1405,3444.0,3442.8,0.47084]
[1762546657089,0.47076,3443.5,3442.8,0.47084]
[1762546657287,0.47081,3443.1,3442.8,0.47084]
[1762546657589,0.09731545,3443.9,3441.6,0.0727]
[1762546657795,0.00290298,3442.7,3442.5,0.47088]
[1762546659100,0.00290298,3442.7,3442.0,0.00435438]
[1762546659299,0.00290298,3442.7,3442.5,0.47089]
[1762546659488,0.00273346,3443.1,3443.0,0.47082]
[1762546660087,0.00273346,3443.1,3442.4,0.1496]
[1762546660497,0.09737624,3444.9,3443.6,0.47074]
[1762546660698,0.47068,3444.0,3443.9,0.00435438]
[1762546660898,0.61118,3444.0,3443.9,0.00435438]
[1762546661198,0.1405,3444.0,3442.4,0.1496]
[1762546661499,0.47079,3443.3,3443.1,0.4708]
[1762546661704,0.0974431,3443.9,3442.4,0.1488]
[1762546661892,0.14306494,3444.0,3442.4,0.1488]
[1762546662092,0.00256494,3444.0,3442.4,0.1488]
[1762546662301,0.00435437,3443.5,3443.4,0.47077]
[1762546663591,0.00435437,3443.5,3442.9,0.00435438]
[1762546663592,0.47077,3443.4,3443.3,0.47077]
[1762546664400,0.00435437,3443.5,3443.4,0.47077]
[1762546665193,0.00435437,3443.5,3442.9,0.00435438]
[1762546665392,0.47082,3443.0,3442.9,0.00435438]
[1762546665589,0.47082,3443.0,3442.9,0.47518438]
[1762546666091,0.47082,3443.0,3442.9,0.00435438]
[1762546666601,0.47079,3443.2,3443.1,0.4708]
[1762546666798,0.56910287,3443.4,3443.2,0.47079]
[1762546667006,0.56910287,3443.4,3442.9,0.00435438]
[1762546667007,0.47081,3443.2,3443.1,0.47081]
[1762546667503,0.09832287,3443.4,3442.9,0.00435438]
[1762546667798,0.00435437,3443.5,3443.4,0.71167]
[1762546668004,0.47510437,3443.5,3443.4,0.71167]
[1762546668300,0.57380143,3443.5,3443.4,0.71167]
[1762546668694,0.10305143,3443.5,3443.4,0.47077]
[1762546668894,0.00435437,3443.5,3443.4,0.71167]
[1762546670007,0.00256494,3444.0,3443.9,0.7116]
[1762546670407,0.10144184,3444.0,3443.7,0.47072]
[1762546670703,0.47072,3443.8,3443.7,0.47071]
[1762546670899,0.5695969,3443.8,3443.7,0.47071]
[1762546671101,0.47072,3443.8,3443.7,0.47071]
[1762546671302,0.0988769,3443.8,3443.3,0.147]
[1762546671497,0.47078,3443.5,3443.4,0.47076]
[1762546671697,0.0988769,3443.5,3443.4,0.47077]
[1762546671908,0.47078,3443.4,3443.3,0.47078]
[1762546672107,0.4708,3443.2,3442.9,0.00435438]
[1762546672409,0.47076,3443.5,3443.4,0.47075]
[1762546672612,0.569685,3443.5,3443.4,0.47077]
[1762546672804,0.098915,3443.5,3442.9,0.00435438]
[1762546673005,0.4708,3443.3,3443.2,0.47078]
[1762546673208,0.569715,3443.3,3443.2,0.47078]
[1762546673414,0.098915,3443.3,3443.2,0.47078]
[1762546673602,0.47077,3443.5,3443.4,0.47077]
[1762546673803,0.569665,3443.5,3442.9,0.00435438]
[1762546674100,0.09892148,3443.4,3443.3,0.47078]
[1762546674310,0.77814454,3443.9,3443.1,0.7117]
[1762546674510,0.47078,3443.4,3443.3,0.47078]
[1762546674809,0.09892492,3443.7,3442.9,0.00435438]
[1762546675116,0.09892511,3443.6,3443.5,0.47075]
[1762546675303,0.09892511,3443.6,3443.5,0.71165]
[1762546675613,0.56966511,3443.6,3442.9,0.00435438]
[1762546675807,0.09892511,3443.5,3443.4,0.47077]
[1762546676109,0.09892511,3443.7,3443.6,0.71164]
[1762546676312,0.09892511,3443.9,3443.8,0.47071]
[1762546676512,0.56962511,3443.9,3443.8,0.47071]
[1762546676818,0.09892511,3443.9,3443.8,0.47071]
[1762546677012,0.56962511,3443.9,3443.8,0.47071]
[1762546677314,0.09892511,3443.9,3443.8,0.69861]
[1762546677612,0.00256494,3444.0,3443.9,0.6986]
[1762546677810,0.00256494,3444.0,3443.9,0.2279]
[1762546678111,0.00256494,3444.0,3443.9,0.6986]
[1762546678912,0.00256494,3444.0,3443.9,0.4707]
[1762546679814,0.00256494,3444.0,3443.9,0.6986]
[1762546680112,0.00256494,3444.0,3443.9,0.2279]
[1762546680416,0.00256494,3444.0,3443.9,0.6986]
[1762546681311,0.4707,3443.9,3443.8,0.47071]
[1762546681710,0.00256494,3444.0,3443.9,0.6986]
[1762546681907,0.4707,3443.9,3443.3,0.147]
[1762546682103,0.47072,3443.7,3442.9,0.00435438]
[1762546682307,0.09902354,3443.9,3442.9,0.00435438]
[1762546682509,0.09902354,3443.8,3442.9,0.00435438]
[1762546682815,0.56974354,3443.8,3443.7,0.47072]
[1762546683020,0.47076,3443.5,3443.4,0.47075]
[1762546683217,0.47082,3443.0,3442.9,0.00435438]
[1762546683409,0.09913986,3443.0,3442.9,0.70307438]
[1762546684015,0.09913986,3443.0,3442.9,0.00435438]
[1762546684215,0.77995543,3443.0,3442.9,0.47518438]
[1762546684415,0.77995543,3443.0,3442.9,0.00435438]
[1762546684614,1.25077543,3443.0,3442.9,0.00435438]
[1762546684812,0.77995543,3443.0,3442.9,0.47518438]
[1762546685024,1.25077543,3443.0,3442.9,0.00435438]
[1762546685415,1.47757543,3443.0,3442.9,0.00435438]
[1762546685821,0.77995543,3443.0,3442.9,0.47518438]
[1762546686118,1.25199304,3443.0,3442.9,0.47518438]
[1762546686510,1.25199304,3443.0,3442.9,0.00435438]
[1762546686910,0.78117304,3443.0,3442.9,0.47518438]
[1762546687421,1.25199304,3443.0,3442.9,0.47518438]
[1762546688314,1.47879304,3443.0,3442.9,0.00435438]
[1762546688510,1.47879304,3443.0,3442.3,0.3287]
[1762546688511,0.6977,3442.4,3442.3,0.3287]
[1762546688708,0.6977,3442.4,3441.0,0.381]
[1762546688709,0.2268,3441.8,3441.7,0.471]
[1762546688918,1.00797304,3441.8,3441.7,0.471]
[1762546689115,0.78117304,3441.8,3441.7,0.471]
[1762546689319,0.78117304,3441.8,3441.7,0.6989]
[1762546689717,0.78117304,3441.8,3441.7,0.471]
[1762546689918,0.78117304,3441.8,3441.7,0.6989]
[1762546690119,0.09913986,3441.8,3441.7,0.6989]
[1762546690313,0.00435438,3442.1,3442.0,0.69886]
[1762546691220,0.00435438,3442.1,3442.0,0.47096]
[1762546691615,0.00435438,3442.1,3442.0,0.69886]
[1762546691814,0.47096,3442.0,3441.9,0.47096]
[1762546692210,1.14855011,3442.0,3441.9,0.47096]
[1762546692416,0.00435438,3442.1,3442.0,0.47096]
[1762546692924,0.00435438,3442.1,3441.9,0.47097]
[1762546693221,0.47096,3442.0,3441.6,0.00316182]
[1762546693417,0.00435438,3442.1,3442.0,0.47096]
[1762546693726,0.00435438,3442.1,3442.0,0.69886]
[1762546694519,0.47530438,3442.1,3441.6,0.14516182]
[1762546694716,0.00435438,3442.1,3442.0,0.47096]
[1762546694919,0.77597407,3442.8,3442.7,0.47086]
[1762546695220,0.47075,3443.5,3443.4,0.47076]
[1762546695417,0.3714,3443.4,3443.3,0.47078]
[1762546695723,0.56979128,3443.4,3443.3,0.47078]
[1762546695920,1.14763441,3443.4,3443.3,0.47078]
[1762546696125,0.67685441,3443.4,3443.3,0.47078]
[1762546696320,0.67685441,3443.7,3443.0,0.00435438]
[1762546696521,0.47075,3443.5,3443.4,0.47076]
[1762546696723,0.47075,3443.5,3443.0,0.00435438]
[1762546696724,0.47081,3443.1,3443.0,0.00435438]
[1762546697016,0.47081,3443.1,3443.0,0.47517438]
[1762546697519,1.18984847,3444.0,3443.0,0.00435438]
[1762546697727,1.18984847,3444.0,3443.3,0.47076]
[1762546697728,0.47077,3443.4,3443.3,0.47076]
[1762546698319,0.47076,3443.5,3443.4,0.47075]
[1762546698721,0.14716494,3444.0,3443.0,0.00435438]
[1762546699026,0.4708,3443.1,3443.0,0.00435438]
[1762546699334,0.47088,3442.6,3442.2,0.142]
[1762546699520,0.47088,3442.6,3442.5,0.47087]
[1762546699720,0.14895438,3443.4,3442.2,0.142]
[1762546699927,0.47078,3443.3,3443.2,0.47078]
[1762546700520,1.14781558,3443.3,3443.2,0.47078]
[1762546700720,0.67703558,3443.3,3442.9,0.00435438]
[1762546700924,0.4708,3443.1,3443.0,0.4708]
[1762546701226,0.47082,3443.0,3442.9,0.47517438]
[1762546701427,0.14895438,3443.4,3442.9,0.00435438]
[1762546701724,0.471,3441.7,3441.6,0.00316182]
[1762546702228,0.47097,3441.9,3441.6,0.47417182]
[1762546702428,0.67707187,3442.1,3441.6,0.00316182]
[1762546702631,1.18728353,3442.8,3441.6,0.00316182]
[1762546702924,0.67705239,3442.7,3442.0,0.2279]
[1762546703225,0.47096,3442.0,3441.9,0.00435438]
[1762546703828,0.471,3441.7,3441.6,0.00316182]
[1762546704533,0.6978,3441.7,3441.6,0.00316182]
[1762546704719,0.69782,3441.5,3440.4,0.142]
[1762546704920,0.47106,3441.2,3441.1,0.00435438]
[1762546705120,0.47106,3441.2,3440.4,0.142]
[1762546705121,0.47115,3440.6,3440.4,0.47117]
[1762546705425,0.1247,3441.2,3440.0,0.47122]
[1762546705426,0.47121,3440.2,3440.0,0.47122]
[1762546705627,0.1446,3440.5,3439.2,2.109]
[1762546705826,0.47119,3440.3,3440.1,0.47121]
[1762546706028,0.14731028,3440.5,3440.2,0.47119]
[1762546706225,0.00271028,3440.5,3440.2,0.47119]
[1762546706428,0.00271028,3440.5,3440.0,0.00436085]
[1762546706429,0.00271028,3440.5,3440.3,0.47117]
[1762546706624,0.00271028,3440.5,3440.4,0.2288]
[1762546706834,0.00271028,3440.5,3440.1,0.47121]
[1762546707323,0.47118,3440.4,3440.0,0.00436085]
[1762546707526,0.47119,3440.3,3440.1,0.47121]
[1762546707731,0.4712,3440.3,3440.0,0.00436085]
[1762546708129,0.14821028,3440.5,3440.1,0.47121]
[1762546708425,0.4712,3440.2,3440.0,0.00436085]
[1762546708633,0.2455,3440.1,3440.0,0.00436085]
[1762546709019,0.14821028,3440.5,3440.0,0.00436085]
[1762546709328,0.14821028,3440.5,3440.1,0.47121]
[1762546709526,0.14821028,3440.5,3440.0,0.00436085]
[1762546709721,0.2455,3440.1,3440.0,0.00436085]
[1762546710218,0.14821028,3440.5,3439.8,0.5062]
[1762546710219,0.2455,3439.9,3439.8,0.5062]
[1762546710422,0.4713,3439.5,3439.2,0.00336368]
[1762546710731,0.2455,3439.3,3439.2,0.00336368]
[1762546710931,0.47128,3439.6,3439.4,0.47131]
[1762546711128,0.47131,3439.4,3439.2,0.47906453]
[1762546711436,0.00436085,3439.8,3439.6,0.47128]
[1762546712333,0.47127,3439.7,3439.4,0.4713]
[1762546712635,0.14986085,3439.8,3439.2,0.00772453]
[1762546712636,0.00436085,3439.8,3439.6,0.47127]
[1762546713030,0.00436085,3439.8,3439.7,0.2288]
[1762546714934,0.00271028,3440.5,3440.4,0.47117]
[1762546715525,0.00271028,3440.5,3440.4,0.83787]
[1762546715734,1.04268353,3442.6,3440.4,8.1379]
[1762546716029,0.2455,3441.1,3441.0,0.00436085]
[1762546716528,0.2455,3440.6,3440.5,0.47115]
[1762546716726,0.2455,3440.6,3439.8,0.0764]
[1762546716929,0.1455,3441.0,3440.3,0.47118]
[1762546717126,0.47115,3440.5,3440.4,0.47117]
[1762546717329,0.47117,3440.4,3440.3,0.47118]
[1762546717526,0.47114,3440.6,3440.4,0.47116]
[1762546717931,0.1455,3441.0,3440.2,0.47119]
[1762546718134,0.47118,3440.4,3440.3,0.47118]
[1762546718331,0.1455,3441.0,3440.1,0.00436085]
[1762546718527,0.1455,3441.0,3440.4,0.47116]
[1762546718733,0.1455,3441.0,3440.5,0.47115]
[1762546719033,0.47113,3440.7,3440.5,0.47115]
[1762546719228,0.47116,3440.5,3440.3,0.47117]
[1762546719533,0.1455,3441.0,3440.1,0.00436085]
[1762546720035,0.1455,3441.0,3440.3,0.47118]
[1762546720237,0.2455,3440.5,3440.4,0.47117]
[1762546720535,0.47119,3440.2,3440.1,0.00436085]
[1762546720736,0.47129,3439.6,3439.2,0.40906368]
[1762546721033,0.47132,3439.3,3439.2,0.40906368]
[1762546721843,0.47132,3439.3,3439.2,0.88039368]
[1762546722135,0.47132,3439.3,3439.2,0.40906368]
[1762546722331,0.00436085,3439.6,3439.2,0.40906368]
[1762546722836,0.47564085,3439.6,3439.4,0.47129]
[1762546723040,0.00436085,3439.6,3439.4,0.47129]
[1762546723233,0.47129,3439.5,3439.4,0.47129]
[1762546723428,0.47132,3439.3,3439.2,0.40906368]
[1762546723630,0.00436085,3439.6,3439.2,0.40906368]
[1762546723631,0.47129,3439.5,3439.2,0.40906368]
[1762546723938,0.47132,3439.3,3439.2,0.40906368]
[1762546724131,0.47132,3439.3,3438.0,0.1379]
[1762546724132,0.1353,3439.2,3438.3,0.47145]
[1762546724436,0.4714,3438.8,3438.4,0.47143]
[1762546724626,0.4714,3438.8,3438.5,0.47143]
[1762546724827,0.47136,3439.0,3438.8,0.47137]
[1762546725026,0.00436085,3439.6,3438.8,0.00344758]
[1762546725242,0.70547,3438.9,3438.8,0.00344758]
[1762546726325,0.47134,3439.1,3439.0,0.47134]
[1762546726524,0.00436085,3439.6,3438.8,0.00344758]
[1762546726731,0.47564085,3439.6,3439.3,0.47131]
[1762546727032,0.09882399,3439.5,3439.3,0.47131]
[1762546727232,0.00436085,3439.6,3438.8,0.00344758]
[1762546727436,0.47564085,3439.6,3439.5,0.47129]
[1762546727635,0.00436085,3439.6,3439.0,0.47136]
[1762546727832,0.47137,3438.9,3438.8,0.00344758]
[1762546728033,0.09887132,3439.5,3438.8,0.24954758]
[1762546728229,0.00436085,3439.6,3438.8,0.00344758]
[1762546728430,0.47133,3439.2,3439.1,0.47133]
[1762546728631,0.09887132,3439.5,3439.1,0.47134]
[1762546728830,0.00436085,3439.6,3438.8,0.00344758]
[1762546729036,0.00436085,3439.6,3439.2,0.47133]
[1762546729237,0.47135,3439.1,3438.8,0.00344758]
[1762546729432,0.47135,3439.1,3439.0,0.47135]
[1762546730233,0.00436085,3439.6,3438.8,0.00344758]
[1762546730436,0.47133,3439.2,3438.8,0.00344758]
[1762546730638,0.00436085,3439.6,3438.8,0.00344758]
[1762546730639,0.47133,3439.3,3439.2,0.47133]
[1762546730937,0.57044638,3439.3,3439.2,0.47133]
[1762546731535,0.09911638,3439.3,3439.1,0.47134]
[1762546731737,0.09911638,3439.2,3439.1,0.47134]
[1762546731936,0.47134,3439.1,3438.9,0.47136]
[1762546732136,0.47134,3439.1,3439.0,0.47136]
[1762546732338,0.09898687,3439.1,3439.0,0.47136]
[1762546732635,0.47136,3439.0,3438.9,0.47136]
[1762546732936,0.57034687,3439.0,3438.9,0.47136]
[1762546733140,0.09898687,3439.0,3438.9,0.47136]
[1762546733336,0.09898687,3439.0,3438.9,0.71746]
[1762546733542,0.57034687,3439.0,3438.9,0.71746]
[1762546733738,0.09907242,3439.0,3438.9,0.71746]
[1762546735844,0.70547,3438.9,3438.8,0.00344758]
[1762546736136,0.80454242,3438.9,3438.8,0.00344758]
[1762546736334,0.33317242,3438.9,3438.8,0.47483758]
[1762546736534,0.09907242,3438.9,3438.8,0.47483758]
[1762546736847,0.77157844,3438.9,3438.8,0.47483758]
[1762546737032,1.24294844,3438.9,3438.8,0.47483758]
[1762546737233,0.77157844,3438.9,3438.8,0.47483758]
[1762546737432,1.24294844,3438.9,3438.8,0.47483758]
[1762546737836,0.77157844,3438.9,3438.8,0.47483758]
[1762546738038,0.09907242,3438.9,3438.8,0.71923758]
[1762546738539,0.81774242,3438.9,3438.8,0.00344758]
[1762546738841,0.47141,3438.6,3438.5,0.47142]
[1762546739031,0.09907242,3438.6,3438.0,0.1053]
[1762546739231,0.09907242,3438.5,3438.4,0.71584]
[1762546739438,0.85383,3439.2,3439.1,0.47134]
[1762546739637,0.34997298,3439.2,3439.1,0.4738703]
[1762546739840,1.62896646,3439.2,3439.1,0.4738703]
[1762546740343,1.24646646,3439.2,3439.1,0.4738703]
[1762546740747,0.77513646,3439.2,3439.1,0.4738703]
[1762546740943,0.10267298,3439.2,3439.1,0.7182703]
[1762546741642,0.10267298,3439.2,3439.1,0.4738703]
[1762546742153,0.00351163,3439.2,3439.1,0.4738703]
[1762546742444,0.47484163,3439.2,3439.1,0.0025303]
[1762546742745,0.95650298,3439.2,3439.1,0.0025303]
[1762546742937,0.7187,3438.7,3438.6,0.3574]
[1762546743242,0.47149,3438.1,3437.4,0.1379]
[1762546743446,0.60662,3438.6,3438.4,0.47144]
[1762546743641,1.24299499,3438.5,3438.4,0.47144]
[1762546743948,1.49029499,3438.5,3438.4,0.00279876]
[1762546744155,1.49029499,3438.5,3438.4,0.47424876]
[1762546744156,1.01886499,3438.5,3438.4,0.47424876]
[1762546744358,1.49029499,3438.5,3438.4,0.00279876]
[1762546745640,1.01886499,3438.5,3438.4,0.00279876]
[1762546745836,1.49029499,3438.5,3438.4,0.00279876]
[1762546746540,2.53211989,3438.5,3438.4,0.00279876]
[1762546746844,2.53216685,3438.5,3438.4,0.00279876]
[1762546747852,1.49029499,3438.5,3438.4,0.00279876]
[1762546748148,1.49029499,3438.5,3436.2,0.145]
[1762546748149,0.1352,3437.4,3436.2,0.145]
[1762546748449,0.00436085,3437.1,3437.0,0.71604]
[1762546748644,0.00436085,3437.1,3437.0,0.2444]
[1762546748645,0.10350248,3437.1,3437.0,0.2444]
[1762546748950,0.10350248,3437.1,3437.0,0.71604]
[1762546749149,0.10350248,3437.1,3437.0,0.71889688]
[1762546749539,0.10350248,3437.1,3437.0,0.24725688]
[1762546749749,1.49601064,3437.1,3437.0,0.00285688]
[1762546750142,0.47174,3436.3,3435.6,0.145]
[1762546750344,0.7743112,3436.2,3435.8,0.2444]
[1762546750546,0.47178,3436.0,3435.8,0.4718]
[1762546750755,1.04398205,3436.6,3435.6,0.145]
[1762546751050,0.47178,3436.1,3435.8,0.47179]
[1762546751349,0.47178,3436.1,3435.6,0.145]
[1762546751350,0.77360644,3436.0,3435.6,0.00370244]
[1762546751549,1.04398205,3436.5,3435.8,0.2444]
[1762546751748,1.04663814,3436.6,3436.5,0.47171]
[1762546752052,0.77619285,3436.6,3436.5,0.71611]
[1762546752349,0.77619285,3436.6,3436.5,0.47171]
[1762546752551,0.77619285,3436.6,3436.5,0.71611]
[1762546753150,0.77619285,3436.6,3436.5,0.2444]
[1762546753347,0.47178,3436.0,3435.6,0.09730244]
[1762546753548,0.6752186,3435.9,3435.6,0.00370244]
[1762546753756,0.47182,3435.7,3435.6,0.00370244]
[1762546753954,1.1470386,3435.7,3435.6,0.00370244]
[1762546754249,1.02072954,3435.7,3435.6,0.00370244]
[1762546755350,1.49254954,3435.7,3435.6,0.00370244]
[1762546755551,1.02072954,3435.7,3435.6,0.00370244]
[1762546755847,0.6752186,3435.7,3435.6,0.86493244]
[1762546756051,0.47173,3436.4,3436.2,0.47175]
[1762546756254,1.14705096,3436.3,3435.6,0.14870244]
[1762546756449,0.67531096,3436.2,3436.1,0.47176]
[1762546756651,0.00265609,3436.6,3436.5,0.47171]
[1762546757350,0.10042859,3436.6,3436.5,0.47171]
[1762546757550,0.00265609,3436.6,3436.5,0.71611]
[1762546758257,0.00436085,3437.1,3437.0,0.71604]
[1762546759050,0.00698164,3437.1,3437.0,8.71604]
[1762546759255,0.00735,3437.5,3437.4,0.86098]
[1762546760256,0.00964481,3437.5,3437.4,0.86098]
[1762546760852,0.00964481,3437.5,3437.4,0.71598]
[1762546761252,0.00964481,3437.5,3437.4,0.47158]
[1762546761460,0.00964481,3437.5,3437.4,0.71598]
[1762546761851,1.04507267,3439.0,3436.8,0.145]
[1762546761852,0.09779056,3438.5,3438.4,0.47144]
[1762546762052,0.09779056,3438.5,3437.7,0.145]
[1762546762053,0.09779056,3439.0,3438.7,0.4714]
[1762546762247,0.09779056,3439.0,3437.7,0.145]
[1762546762759,0.47131,3439.4,3439.1,0.47134]
[1762546762960,0.00323505,3439.4,3438.0,0.00436085]
[1762546763152,0.47139,3438.9,3438.2,0.47147]
[1762546763459,0.47139,3438.9,3438.0,0.00436085]
[1762546763460,0.1352,3439.1,3438.6,0.47142]
[1762546763752,0.1352,3439.1,3438.0,0.00436085]
[1762546764362,0.00323505,3439.4,3438.0,0.00436085]
[1762546764552,0.47139,3438.9,3438.0,0.00436085]
[1762546764753,0.47135,3439.2,3438.0,0.00436085]
[1762546764954,0.67185945,3439.2,3438.0,0.00436085]
[1762546765153,0.47133,3439.3,3438.0,0.09796085]
[1762546765353,0.67190843,3439.3,3439.1,0.47135]
[1762546765749,0.00323505,3439.4,3439.2,0.47133]
[1762546765954,0.00323505,3439.4,3439.3,0.2444]
[1762546767154,0.00323505,3439.4,3438.6,0.145]
[1762546767356,0.47133,3439.3,3439.2,0.47134]
[1762546767566,0.00323505,3439.4,3438.8,0.47139]
[1762546767755,0.47136,3439.1,3438.9,0.47138]
[1762546767956,0.00323505,3439.4,3438.6,0.145]
[1762546768260,0.47135,3439.1,3438.9,0.47138]
[1762546768457,0.00323505,3439.4,3438.8,0.47138]
[1762546768663,0.47134,3439.2,3438.9,0.47138]
[1762546769164,0.47136,3439.1,3438.9,0.47138]
[1762546769464,0.47141,3438.7,3438.0,0.09796085]
[1762546769661,0.47141,3438.7,3438.5,0.47143]
[1762546769864,0.1398,3439.2,3438.0,0.09796085]